Cogmind - Beta 14 @@@ ROGUE MODE // 2024.08.31 @ 01:02:28 Player: Decinym Result: Destroyed by P1-3CE with P1-3CE's Gatling Flakker Performance ------------- Evolutions (1) 500 Regions Visited (6) 1200 Robots Destroyed (56) 280 Value Destroyed (993) 993 Prototype IDs (36) 720 Alien Tech Used (0) 0 Bonus (-17) -17 TOTAL SCORE: 3676 Bonus ------- High Alert Combat Kills 8 Follower Combat Kills 120 Aligned with FarCom 300 Friendly Fire -445 Cogmind --------- Core Integrity 0/400 Matter 288/300 Energy 302/310 System Corruption 1% Temperature Cool (12) Movement Treading (240) Ox1 Location -8/Mines Parts ------- > --- POWER (1) -------- Heavy Deuterium Engine > --- PROPULSION (3) --- Light Treads Light Treads Light Treads > --- UTILITY (3) ------ High-capacity Storage Unit Experimental Core Analyzer Light Armor Plating > --- WEAPON (2) ------- 8R-AWN's Boregun 8R-AWN's Boregun > --- INVENTORY (20) --- Cold Fusion Reactor Light Neutrino Core Reinforced Fission Core Light Treads Advanced Myomer Leg Advanced Myomer Leg Experimental Heat Sink High-capacity Matter Pod (200) Experimental Targeting Computer Light Armor Plating 8R-AWN's Armor/EX AS-neutralizer No. 17b AWS/EX-DEC Light EM Pulse Cannon Light EM Pulse Cannon Grenade Launcher Rocket Launcher Peak State ------------ > --- POWER ------------ Heavy Deuterium Engine > --- PROPULSION ------- Light Treads Light Treads Light Treads > --- UTILITY ---------- High-capacity Storage Unit Salvage Targeting Computer Advanced Component Analysis Suite > --- WEAPON ----------- AWS/EX-DEC > --- INVENTORY -------- Cold Fusion Reactor Light Neutrino Core Reinforced Fission Core Light Treads Advanced Myomer Leg Advanced Myomer Leg Experimental Heat Sink High-capacity Matter Pod Experimental Targeting Computer Experimental Core Analyzer 8R-AWN's Armor/EX AS-neutralizer No. 17b Light EM Pulse Cannon Light EM Pulse Cannon 8R-AWN's Boregun 8R-AWN's Boregun Grenade Launcher Rocket Launcher [Rating: 51] Favorites ----------- Power Light Ion Engine Engine Light Ion Engine Propulsion Light Treads Treads Light Treads Leg Aluminum Leg Utility High-capacity Storage Unit Device Cooling System Storage High-capacity Storage Unit Processor Salvage Targeting Computer Protection Hardened Light Armor Plating Weapon Autogun Energy Gun Beamcaster Energy Cannon Heavy Particle Cannon Ballistic Gun Autogun Launcher Grenade Launcher Build | -11 -10 -10 -9 -9 -9 -8 ------- Run | Yrd Mat Min Mat Min Exi Min Slots Evolved 2 | . . . 2 . . . Power . | . . . . . . . Propulsion 1 | . . . 1 . . . Utility 1 | . . . 1 . . . Weapon . | . . . . . . . Parts Attached 60 | . 8 . 10 3 37 2 Power 4 | . 1 . 1 . 2 . Engine 4 | . 1 . 1 . 2 . Core . | . . . . . . . Reactor . | . . . . . . . Propulsion 15 | . 2 . 1 . 12 . Treads 12 | . 2 . 1 . 9 . Leg 3 | . . . . . 3 . Wheel . | . . . . . . . Hover . | . . . . . . . Flight . | . . . . . . . Utility 16 | . 3 . 3 . 8 2 Device 6 | . 1 . 1 . 4 . Storage 2 | . 2 . . . . . Processor 2 | . . . . . 1 1 Hackware . | . . . . . . . Protection 6 | . . . 2 . 3 1 Artifact . | . . . . . . . Weapon 25 | . 2 . 5 3 15 . Energy Gun 4 | . . . 2 1 1 . Energy Cannon 1 | . . . 1 . . . Ballistic Gun 17 | . 2 . 2 1 12 . Ballistic Cannon . | . . . . . . . Launcher 3 | . . . . 1 2 . Special Weapon . | . . . . . . . Impact Weapon . | . . . . . . . Slashing Weapon . | . . . . . . . Piercing Weapon . | . . . . . . . Special Melee Weapon . | . . . . . . . Unidentified Prototypes 8 | . . . 1 . 7 . Parts Lost 12 | . 1 . 1 . 10 . Power 2 | . 1 . . . 1 . Propulsion 4 | . . . . . 4 . Utility 2 | . . . 1 . 1 . Weapon 4 | . . . . . 4 . Highest Loss Streak 6 | . 1 . 1 . 6 . To Critical Strikes 8 | . . . . . 8 . Average Slot Usage (%) 98 | . 99 100 98 100 98 100 Engine 12 | . 14 14 11 11 11 11 Treads 26 | . 13 28 33 33 30 33 Leg 3 | . 14 . . . 1 . Device 8 | . 13 14 10 11 1 . Storage 12 | . 14 14 11 11 11 11 Processor 4 | . . . . . 9 11 Protection 5 | . . . 11 11 10 11 Energy Gun 2 | . 5 . 6 9 2 . Energy Cannon 1 | . . . 9 11 1 . Ballistic Gun 18 | . 22 28 5 . 13 22 Launcher 1 | . . . . 1 3 . Peak Build Rating 51 | . 11 14 22 22 51 51 Average Rating 19 | . 10 13 19 21 27 48 On Entrance 17 | 6 6 11 14 20 22 44 Naked Turns . | . . . . . . . Heaviest Build 66 | 12 51 51 61 63 66 66 Greatest Support 80 | 20 40 40 60 60 80 60 Greatest Overweight (x) 2 | . 1 1 1 1 2 1 Average Overweight (x) . | . . 1 . 1 . 1 Largest Inventory Capacity 20 | . 20 20 20 20 20 20 Average Capacity 18 | . 13 20 20 20 20 20 Most Carried 20 | . 9 20 20 20 20 20 Average Carried 15 | . 7 16 19 20 17 19 Final Capacity 20 | 8 20 20 20 20 20 20 Final Carried 20 | 6 9 20 20 20 20 20 Class Distribution -------------------- 80% | Mutant 19% | Scavenger-Mutant Dominant Class ---------------- Mutant | -10/Materials Mutant | -10/Mines Mutant | -9/Materials Mutant | -9/Mines Mutant | -9/Exiles Scavenger-Mutant | -8/Mines Resources | -11 -10 -10 -9 -9 -9 -8 ----------- Run | Yrd Mat Min Mat Min Exi Min Matter Collected 2131 | 200 368 147 127 31 1142 116 Remotely . | . . . . . . . Salvage Created 2168 | . 498 204 559 31 590 286 Parts 164 | . 29 13 28 6 73 15 Haulers Intercepted 5 | . 2 . 3 . . . Recyclers Shooed 2 | . . . 2 . . . Parts Field Recycled . | . . . . . . . Retrieved Matter . | . . . . . . . Parts Self-Destructed . | . . . . . . . Prevented . | . . . . . . . Kills | -11 -10 -10 -9 -9 -9 -8 ------- Run | Yrd Mat Min Mat Min Exi Min Combat Hostiles Destroyed 34 | . 11 3 7 4 5 4 Guns 26 | . 11 3 5 . 3 4 Cannons 2 | . . . 2 . . . AOE 6 | . . . . 4 2 . Classes Destroyed 13 | . 5 . 3 . 3 2 Worker 3 | . 1 1 1 . . . Hauler 5 | . 2 . 3 . . . Recycler 3 | . 1 1 . . . 1 Mechanic 1 | . . . 1 . . . Turret 1 | . . . . . 1 . Watcher 1 | . . . 1 . . . Swarmer 11 | . 6 1 . 4 . . Grunt 16 | . 5 2 7 . . 2 Brawler 1 | . . . . . . 1 Sentry 2 | . . . 2 . . . Hunter 1 | . . . . . . 1 Zionite 8 | . . . . . 8 . Assembled 4 | . . . . . 4 . Best Kill Streak 6 | . 4 2 5 4 6 4 Combat Bots Only 4 | . 3 2 3 4 4 4 Max Kills in Single Turn 4 | . 2 1 4 4 1 2 Gunslinging 1 | . 1 . . . . 1 Exploded 4 | . . . . 4 1 . Melee . | . . . . . . . Uniques/NPCs Destroyed 4 | . . . . . 4 . 8R-AWN (-9/Exiles) EX-DEC (-9/Exiles) EX-BIN (-9/Exiles) EX-HEX (-9/Exiles) Combat | -11 -10 -10 -9 -9 -9 -8 -------- Run | Yrd Mat Min Mat Min Exi Min Hostile Shots Fired 253 | . 57 12 13 4 123 44 Missed 59 | . 16 4 6 2 22 9 Damage Taken 3130 | . 393 109 163 17 1777 671 Core 504 | . 91 10 . . 216 187 Absorbed by Shields . | . . . . . . . Regen/Repaired (Parts) 77 | . . . 77 . . . Core Remaining (%) 79 | 100 . 59 . . . . Volleys Fired 185 | . 41 13 23 1 98 9 Largest 2 | . 2 2 2 1 2 2 Hottest 150 | . 100 46 150 30 60 60 Shots Fired 359 | . 82 27 45 1 186 18 Gun 326 | . 82 27 22 . 177 18 Cannon 23 | . . . 23 . . . Launcher 10 | . . . . 1 9 . Special . | . . . . . . . Kinetic 301 | . 70 27 9 . 177 18 Thermal 48 | . 12 . 36 . . . Explosive 10 | . . . . 1 9 . Electromagnetic . | . . . . . . . Robot Hit Streak 21 | . 10 7 13 14 21 3 Robot Miss Streak 4 | . 4 4 3 . 2 2 Penetration Max 1 | . . . . . . 1 Secondary Targets 6 | . 2 2 . . 1 1 Max Gunslinging Chain 1 | . 1 1 . . 1 1 Shots Hit Robots 248 | . 59 13 32 1 133 10 Core Hits 100 | . 19 8 15 4 47 7 Critical Kills 6 | . . . . . 1 5 Critical Parts Destroyed 3 | . . . . . 1 2 Critical Strikes 10 | . . . . . 2 8 Destroy 10 | . . . . . 2 8 Melee Attacks . | . . . . . . . Impact . | . . . . . . . Slashing . | . . . . . . . Piercing . | . . . . . . . Sneak Attacks . | . . . . . . . Combat Hostiles . | . . . . . . . Follow-up Attacks . | . . . . . . . Damage Inflicted 4963 | . 904 237 1151 167 2326 178 Guns 3628 | . 899 229 309 . 2013 178 Cannons 425 | . . . 425 . . . Explosions 878 | . . . 398 167 313 . Melee . | . . . . . . . Ramming 32 | . 5 8 19 . . . Kinetic 3303 | . 778 229 105 . 2013 178 Thermal 750 | . 121 . 629 . . . Explosive 878 | . . . 398 167 313 . Electromagnetic . | . . . . . . . Impact . | . . . . . . . Slashing . | . . . . . . . Piercing . | . . . . . . . Highest Corruption 1 | . 1 1 . . 1 1 Average Corruption 1 | . 1 1 . . 1 1 Corruption Purged . | . . . . . . . Corruption Blocked . | . . . . . . . Effects 22 | . 4 12 . . 6 . Message Errors 3 | . . 1 . . 2 . Matter Fused 8 | . 2 5 . . 1 . Heat Flow Errors 4 | . 1 1 . . 2 . Energy Discharges 3 | . 1 2 . . . . Data Loss (major) 1 | . . 1 . . . . Misfires 1 | . . 1 . . . . Alerts 2 | . . 1 . . 1 . Overload Shots . | . . . . . . . Overflow Damage 21 | . . . 21 . . . Projectiles . | . . . . . . . Explosions 21 | . . . 21 . . . Melee . | . . . . . . . Knockbacks . | . . . . . . . Impact . | . . . . . . . Kinetic . | . . . . . . . Secondary . | . . . . . . . Self-Inflicted Damage 83 | . . . 75 . 8 . Shots 2 | . . . 1 . 1 . Rammed 5 | . 2 1 2 . . . Targets Rammed 5 | . 2 1 2 . . . Kicked . | . . . . . . . Crushed . | . . . . . . . Highest Temperature 235 | . 235 216 60 . 217 153 Average Temperature 30 | . 101 113 24 . 20 71 Received Heat Transfer 399 | . 186 54 42 . . 117 Siege Activations . | . . . . . . . Robots Corrupted . | . . . . . . . Combat Hostiles . | . . . . . . . Parts Fried . | . . . . . . . Impact Corruptions . | . . . . . . . Robots Melted . | . . . . . . . Combat Hostiles . | . . . . . . . Parts Melted 2 | . 1 . 1 . . . Heat Transferred 1332 | . 333 . 999 . . . Parts Sabotaged . | . . . . . . . Parts Stolen . | . . . . . . . Parts Stripped . | . . . . . . . Power Chain Reactions . | . . . . . . . Alert | -11 -10 -10 -9 -9 -9 -8 ------- Run | Yrd Mat Min Mat Min Exi Min Peak Influence 405 | . 228 197 405 180 . 106 Initial 79 | . . 59 33 79 . . Average 115 | . 111 95 185 177 . 82 Maximum Alert Level 2 | . 1 . 2 . . . Low Security (%) 85 | . 78 100 50 100 . 100 Level 1 13 | . 21 . 45 . . . Level 2 . | . . . 4 . . . Level 3 . | . . . . . . . Level 4 . | . . . . . . . Level 5 . | . . . . . . . High Security . | . . . . . . . Max Security . | . . . . . . . Squads Dispatched 3 | . 2 . 1 . . . Investigation 1 | . 1 . . . . . Extermination . | . . . . . . . Reinforcement 2 | . 1 . 1 . . . Assault . | . . . . . . . Garrison . | . . . . . . . Intercept . | . . . . . . . Searches Triggered . | . . . . . . . Construction Impeded . | . . . . . . . Haulers Reinforced . | . . . . . . . Active Scanning Responses . | . . . . . . . Cargo Convoy Interrupts . | . . . . . . . Stealth | -11 -10 -10 -9 -9 -9 -8 --------- Run | Yrd Mat Min Mat Min Exi Min Distress Signals 4 | . 2 . 2 . . . Communications Jammed . | . . . . . . . Distress Signals . | . . . . . . . Times Spotted 70 | . 22 5 19 4 15 5 Peak Tracking Total 9 | . 5 3 4 4 9 4 Tactical Retreats 5 | . 2 . 1 . 2 . Traps | -11 -10 -10 -9 -9 -9 -8 ------- Run | Yrd Mat Min Mat Min Exi Min Traps Triggered . | . . . . . . . Indirectly . | . . . . . . . Trap Hack Attempts . | . . . . . . . Triggered . | . . . . . . . Disarmed . | . . . . . . . Reprogrammed . | . . . . . . . Reused . | . . . . . . . Traps Extracted . | . . . . . . . Installed . | . . . . . . . Triggered . | . . . . . . . Machines | -11 -10 -10 -9 -9 -9 -8 ---------- Run | Yrd Mat Min Mat Min Exi Min Machines Disabled 12 | . . 2 1 . 9 . Max in Single Turn 1 | . . 1 1 . 1 . Machines Repaired . | . . . . . . . Machines Dismantled . | . . . . . . . Machines Sabotaged . | . . . . . . . Overloaded Fab Kills . | . . . . . . . Hacking | -11 -10 -10 -9 -9 -9 -8 --------- Run | Yrd Mat Min Mat Min Exi Min Machines Accessed 12 | . 7 1 2 . 2 . Terminals 8 | . 7 . 1 . . . Fabricators . | . . . . . . . Repair Stations 1 | . . . 1 . . . Recycling Units . | . . . . . . . Scanalyzers . | . . . . . . . Garrison Access . | . . . . . . . Total Hacks 32 | . 22 1 7 . 2 . Successful 17 | . 9 1 5 . 2 . Failed 14 | . 12 . 2 . . . Catastrophic 1 | . 1 . . . . . Database Lockouts 1 | . 1 . . . . . Manual 24 | . 21 . 2 . 1 . Terminals 27 | . 22 . 5 . . . Fabricators . | . . . . . . . Repair Stations 2 | . . . 2 . . . Recycling Units . | . . . . . . . Scanalyzers . | . . . . . . . Garrison Access . | . . . . . . . Terminal Hacks 7 | . 2 1 2 . 2 . Record 1 | . . . . . 1 . Robot Analysis 1 | . 1 . . . . . Open Door 1 | . . 1 . . . . Branch Access Points 1 | . . . 1 . . . Hauler Manifests 1 | . . . 1 . . . Zone Layout 1 | . 1 . . . . . Derelict Proto ID Bank 1 | . . . . . 1 . Fabricator Hacks . | . . . . . . . Repair Station Hacks 2 | . . . 2 . . . Scan Component 1 | . . . 1 . . . Repair 1 | . . . 1 . . . Recycling Unit Hacks . | . . . . . . . Scanalyzer . | . . . . . . . Garrison Access Hacks . | . . . . . . . Unauthorized Hacks 8 | . 7 . 1 . . . Terminals 8 | . 7 . 1 . . . Skim 8 | . 7 . 1 . . . Fabricators . | . . . . . . . Repair Stations . | . . . . . . . Recycling Units . | . . . . . . . Scanalyzers . | . . . . . . . Garrison Access . | . . . . . . . Data Cores Recovered . | . . . . . . . Used . | . . . . . . . Hacking Detections 7 | . 5 . 2 . . . Full Trace Events 1 | . 1 . . . . . Feedback Events 1 | . 1 . . . . . Corruption 1 | . 1 . . . . . Feedback Blocked . | . . . . . . . Robot Schematics Acquired . | . . . . . . . Robots Built . | . . . . . . . Authchips . | . . . . . . . Time . | . . . . . . . Total Robot Build Rating . | . . . . . . . Part Schematics Acquired . | . . . . . . . Parts Built . | . . . . . . . Authchips . | . . . . . . . Time . | . . . . . . . Total Part Build Rating . | . . . . . . . Parts Repaired 1 | . . . 1 . . . Time 32 | . . . 32 . . . Parts Recycled . | . . . . . . . Recycled Matter . | . . . . . . . Retrieved Matter . | . . . . . . . Retrieved Components . | . . . . . . . Parts Scanalyzed . | . . . . . . . Part Schematics Acquired . | . . . . . . . Parts Damaged . | . . . . . . . Bothacking | -11 -10 -10 -9 -9 -9 -8 ------------ Run | Yrd Mat Min Mat Min Exi Min Used RIF Installer . | . . . . . . . Robots Hacked . | . . . . . . . Non-combat . | . . . . . . . Combat . | . . . . . . . Robot Hacks Applied . | . . . . . . . Relay Couplers Released . | . . . . . . . Fabnet Peak Effective % . | . . . . . . . Robots Rewired . | . . . . . . . Allies Hacked . | . . . . . . . Hacks Repelled . | . . . . . . . Allies | -11 -10 -10 -9 -9 -9 -8 -------- Run | Yrd Mat Min Mat Min Exi Min Total Allies 6 | . . 6 . . . . Largest Group 5 | . . 5 4 . . . Highest-Rated Group 81 | . . 81 50 . . . Highest-Rated Ally 31 | . . 31 16 . . . Total Orders . | . . . . . . . Ally Attacks 29 | . . 15 14 . . . Total Damage 245 | . . 124 121 . . . Kills 8 | . . 5 3 . . . Allies Corrupted . | . . . . . . . Allies Melted . | . . . . . . . Intel | -11 -10 -10 -9 -9 -9 -8 ------- Run | Yrd Mat Min Mat Min Exi Min Robot Analysis Total 1 | . 1 . . . . . Derelict Logs Recovered 2 | . . 1 . 1 . . Drone Launches . | . . . . . . . Drone Recoveries . | . . . . . . . Exploration | -11 -10 -10 -9 -9 -9 -8 ------------- Run | Yrd Mat Min Mat Min Exi Min Turns Passed 5417 | . 1085 1380 413 90 2383 66 Spaces Moved 2274 | 1 544 555 152 35 972 15 Core . | . . . . . . . Treads 1910 | . 228 555 152 35 925 15 Legs 364 | 1 316 . . . 47 . Wheels . | . . . . . . . Hover . | . . . . . . . Flight . | . . . . . . . Fastest Speed 120 | 120 120 240 163 243 126 240 Average Speed 200 | 120 172 240 187 243 192 240 Slowest Speed 320 | 120 240 240 243 243 320 240 Overloaded Moves . | . . . . . . . Propulsion Burnouts . | . . . . . . . Robots Hopped . | . . . . . . . Cave-ins Triggered . | . . . . . . . Exploration Rate (%) 43 | 1 78 96 25 13 87 7 Regions Visited 6 Branch Regions 4 Pre-discovered Areas 2 | . 1 . . . 1 . Known Exits Taken 3 | . . 1 1 1 . . Unknown Exits Taken 3 | 1 1 . . . 1 . Scrap Searched 1 | . . 1 . . . . Spaces Dug . | . . . . . . . Terrain Destroyed 92 | . . . 50 11 23 8 Melee . | . . . . . . . Projectile 12 | . . . 5 . . 7 AOE 79 | . . . 45 11 23 . Terrain Rammed . | . . . . . . . Walls Destroyed . | . . . . . . . Machines Disabled . | . . . . . . . Actions | -11 -10 -10 -9 -9 -9 -8 --------- Run | Yrd Mat Min Mat Min Exi Min Total 2846 | . 625 585 236 38 1332 30 Wait 212 | . 8 . 34 . 169 1 Move 2268 | . 543 554 151 34 971 15 Hop . | . . . . . . . Pick Up 57 | . 11 14 8 . 23 1 Fast Attach 20 | . 4 . 3 . 12 1 Attach 24 | . 2 . 4 . 17 1 Detach 5 | . . . . . 5 . Swap 16 | . 2 . 3 3 8 . Drop 54 | . 12 3 8 . 29 2 Fire 185 | . 41 13 23 1 98 9 Melee . | . . . . . . . Ram . | . . . . . . . Kick . | . . . . . . . Crush 5 | . 2 1 2 . . . Escape Stasis . | . . . . . . . Rewire . | . . . . . . . Trap . | . . . . . . . Miscellaneous . | . . . . . . . Route ------- -11/Scrapyard -10/Materials (discovered 5 exits: *Mat x3 / *Min / Sub) -10/Mines (discovered 3 exits: *Mat x2 / Sub) -9/Materials (discovered 3 exits: Mat / *Min x2) -9/Mines (discovered 3 exits: Mat x2 / *Exi) -9/Exiles -8/Mines (discovered 2 exits: Mat x2) History --------- Turn | Location | Event 1 | -11/Scrapyard | Discovered new exit (range 0) 1 | -11/Scrapyard | Entered Materials 135 | -10/Materials | Discovered new exit (range 8) 303 | -10/Materials | Build established: Mutant 460 | -10/Materials | Discovered new exit (range 7) 622 | -10/Materials | Central database locked down 701 | -10/Materials | Identified exit to Subcaves 701 | -10/Materials | Identified exit to Materials 745 | -10/Materials | Learned location of 2 exits from Mines 809 | -10/Materials | Learned Storage emergency access door positions 810 | -10/Materials | Learned location of 2 exits from Mines 812 | -10/Materials | Learned location of 2 exits from Mines 821 | -10/Materials | Learned location of 2 exits from Mines 840 | -10/Materials | Learned location of Mines (-9) 1086 | -10/Materials | Entered Mines 1307 | -10/Mines | Assisted by bots powering up and referring to "LRC-V3" 1552 | -10/Mines | Learned 8 Materials zone layouts 1558 | -10/Mines | Met a Derelict who couldn't figure out how to use a Trap Extractor 1946 | -10/Mines | Received a Mining Laser from a helpful Derelict 2231 | -10/Mines | Received a Rocket Launcher from a helpful Derelict 2466 | -10/Mines | Entered Materials 2466 | -9/Materials | Accompanied by 4 allies 2466 | -9/Materials | Evolved 2 slots: Propulsion x1, Utility x1 2467 | -9/Materials | Identified exit to Materials 2467 | -9/Materials | Identified exit to Mines 2512 | -9/Materials | Repaired Autogun 2879 | -9/Materials | Entered Mines 2880 | -9/Mines | Identified exit to Exiles 2947 | -9/Mines | Learned location of 1 exit from Materials 2956 | -9/Mines | Deemed a non-threat by the Exiles lab entrance 2969 | -9/Mines | Entered Exiles 3035 | -9/Exiles | Met 8R-AWN 3069 | -9/Exiles | Met EX-HEX 3157 | -9/Exiles | Met EX-DEC 3208 | -9/Exiles | Learned location of Zion (-7) 3453 | -9/Exiles | Visited The Gauntlet 3721 | -9/Exiles | Met EX-BIN 3744 | -9/Exiles | Aligned with FarCom system 3746 | -9/Exiles | Given EX-Vault access code 3783 | -9/Exiles | Opened EX-Vault 3825 | -9/Exiles | Warned to stay clear of 0b10 Research branches 3940 | -9/Exiles | Attacked by the Exiles 4111 | -9/Exiles | Lost 6 parts (1p3n2w) 4145 | -9/Exiles | Destroyed 8R-AWN 4154 | -9/Exiles | Found Prototype Ballistic Gun 4160 | -9/Exiles | Found Prototype Ballistic Gun 4167 | -9/Exiles | Found Prototype Device 4167 | -9/Exiles | Identified AS-neutralizer No. 17b 4170 | -9/Exiles | Lost 3 parts (1u2w) 4186 | -9/Exiles | Found Prototype Processor 4191 | -9/Exiles | Found Prototype Protection 4279 | -9/Exiles | Identified 8R-AWN's Boregun (x2) 4598 | -9/Exiles | Core integrity fell below 50% 4599 | -9/Exiles | Destroyed EX-DEC 4641 | -9/Exiles | Destroyed EX-BIN 4648 | -9/Exiles | Destroyed EX-HEX 4663 | -9/Exiles | Found Prototype Processor 4937 | -9/Exiles | Build established: Scavenger-Mutant 4964 | -9/Exiles | Found Prototype Energy Gun 4964 | -9/Exiles | Identified AWS/EX-DEC 5005 | -9/Exiles | Identified Exp. Targeting Computer 5021 | -9/Exiles | Identified Exp. Core Analyzer 5025 | -9/Exiles | Identified 8R-AWN's Armor/EX 5326 | -9/Exiles | Discovered new exit (range 11) 5352 | -9/Exiles | Entered Mines 5411 | -8/Mines | P1-3CE came to Exiles' defense 5418 | -8/Mines | Core integrity fell below 20% 5418 | -8/Mines | Destroyed by P1-3CE with P1-3CE's Gatling Flakker Last Messages --------------- 05398_ U-05 Engineer lays Concrete. 05409_ R-06 Scavenger collects Hammer. 05410_ U-05 Engineer lays Concrete. 05411_ P1-3CE: "I came as fast as I could... Wait, it was you!" 05411_ U-05 Engineer lays Concrete. 05412_ HV Slug penetrates Wall. 05412_ HV Slug penetrates R-06 Scavenger. 05412_ R-06 Scavenger suffers critical hit (Destroy). 05412_ R-06 Scavenger destroyed. 05412_ HV Slug penetrates P1-3CE. 05412_ P1-3CE suffers critical hit (Destroy). 05412_ Destroyed Spk. Heavy Treads. 05412_ U-05 Engineer builds a Wall. 05413_ Acquired 12 matter. 05415_ HV Slug penetrates P1-3CE. 05416_ Acquired 12 matter. 05416_ U-05 Engineer builds a Wall. 05418_ HV Slug penetrates P1-3CE. 05418_ P1-3CE suffers critical hit (Destroy). 05418_ HV Slug penetrates Wall. Map ----- +----------------------------------------------------+ | ?????????????????????????????????????????????